fUST/lending_fUST_20250626
["ID","MTS","AMOUNT","RATE_DAILY","PERIOD"]
[367655617,1750888243186,-460.0,0.00017534,2]
[367655619,1750888243195,-1094.6,0.00017534,2]
[367655621,1750888243204,-460.0,0.00017534,2]
[367655623,1750888243214,-1290.48,0.00017534,2]
[367655625,1750888243223,-460.0,0.00017534,2]
[367655627,1750888243233,-460.0,0.00017534,2]
[367655629,1750888243243,-460.0,0.00017534,2]
[367655631,1750888243253,-460.0,0.00017534,2]
[367655633,1750888243262,-460.0,0.00017534,2]
[367655635,1750888243271,-460.0,0.00017534,2]
[367655637,1750888243280,-655.46,0.00017534,2]
[367655639,1750888243290,-460.0,0.00017534,2]
[367655641,1750888243299,-460.0,0.00017534,2]
[367655643,1750888243310,-535.35,0.00017534,2]
[367655645,1750888243319,-989.16,0.00017534,2]
[367655647,1750888243328,-460.0,0.00017534,2]
[367655648,1750888243338,-460.0,0.00017534,2]
[367655649,1750888243348,-1397.3,0.00017534,2]
[367655650,1750888243358,-460.0,0.00017534,2]
[367655651,1750888243369,-788.11,0.00017534,2]
[367655652,1750888243379,-460.0,0.00017534,2]
[367655653,1750888243391,-460.0,0.00017534,2]
[367655654,1750888243402,-717.09,0.00017534,2]
[367655656,1750888243412,-576.51,0.00017534,2]
[367655657,1750888243422,-874.83,0.00017534,2]
[367655658,1750888243431,-460.0,0.00017534,2]
[367655659,1750888243441,-460.0,0.00017534,2]
[367655660,1750888243451,-460.0,0.00017534,2]
[367655661,1750888243462,-460.0,0.00017534,2]
[367655662,1750888243472,-460.0,0.00017534,2]
[367655663,1750888243484,-231.20057677,0.00017534,2]
[367655664,1750888243494,-460.0,0.00017534,2]
[367655665,1750888243503,-839.63,0.00017534,2]
[367655666,1750888243513,-917.74,0.00017534,2]
[367655667,1750888243524,-484.22,0.00017534,2]
[367655668,1750888243533,-460.0,0.00017534,2]
[367655669,1750888243542,-460.0,0.00017534,2]
[367655670,1750888243551,-460.0,0.00017534,2]
[367655671,1750888243561,-460.0,0.00017534,2]
[367655672,1750888243570,-543.99,0.00017534,2]
[367655673,1750888243579,-1859.25,0.00017534,2]
[367655674,1750888243589,-460.0,0.00017534,2]
[367655675,1750888243598,-460.0,0.00017534,2]
[367655676,1750888243607,-1795.95,0.00017534,2]
[367655677,1750888243616,-460.0,0.00017534,2]
[367655678,1750888243626,-460.0,0.00017534,2]
[367655679,1750888243635,-460.0,0.00017534,2]
[367655680,1750888243643,-500.0,0.00017554,2]
[367655681,1750888243652,-500.0,0.00017554,2]
[367655682,1750888243662,-502.55035468,0.00017554,2]
[367655683,1750888243671,-500.0,0.00017554,2]
[367655684,1750888243680,-500.0,0.00017554,2]
[367655685,1750888243689,-500.0,0.00017556,2]
[367655686,1750888243698,-500.40216454,0.00017556,2]
[367655687,1750888243707,-500.0,0.00017567,2]
[367655688,1750888243716,-500.0,0.00017567,2]
[367655689,1750888243726,-500.0,0.00017617,2]
[367655690,1750888243735,-500.0,0.00017619,2]
[367655691,1750888243744,-160.0,0.00017709,2]
[367655692,1750888243753,-213.69531788,0.00017709,2]
[367655693,1750888243764,-160.0,0.00017709,2]
[367655694,1750888243773,-846.80634355,0.00017709,2]
[367655695,1750888243782,-524.21181985,0.00017709,2]
[367655696,1750888243791,-160.0,0.00017709,2]
[367655697,1750888243800,-230.22714675,0.00017709,2]
[367655698,1750888243809,-836.86812089,0.00017709,2]
[367655699,1750888243819,-425.18553072,0.00017709,2]
[367655700,1750888243828,-160.0,0.00017709,2]
[367655701,1750888243837,-12558.06783089,0.00017709,2]
[367655702,1750888243846,-160.0,0.00017709,2]
[367655703,1750888243855,-282.36261564,0.00017808,2]
[367655704,1750888243864,-460.0,0.00017808,2]
[367655705,1750888243874,-460.0,0.00017808,2]
[367655706,1750888243883,-460.0,0.00017808,2]
[367655707,1750888243892,-480.33,0.00017808,2]
[367655708,1750888243902,-460.0,0.00017808,2]
[367655709,1750888243911,-1094.6,0.00017808,2]
[367655710,1750888243921,-460.0,0.00017808,2]
[367655711,1750888243930,-1290.48,0.00017808,2]
[367655712,1750888243939,-460.0,0.00017808,2]
[367655713,1750888243948,-460.0,0.00017808,2]
[367655714,1750888243957,-460.0,0.00017808,2]
[367655715,1750888243967,-460.0,0.00017808,2]
[367655716,1750888243976,-460.0,0.00017808,2]
[367655717,1750888243986,-460.0,0.00017808,2]
[367655718,1750888243995,-655.46,0.00017808,2]
[367655719,1750888244005,-460.0,0.00017808,2]
[367655720,1750888244014,-460.0,0.00017808,2]
[367655721,1750888244023,-535.35,0.00017808,2]
[367655722,1750888244032,-989.16,0.00017808,2]
[367655723,1750888244042,-460.0,0.00017808,2]
[367655724,1750888244051,-460.0,0.00017808,2]
[367655725,1750888244060,-1397.3,0.00017808,2]
[367655726,1750888244070,-460.0,0.00017808,2]
[367655727,1750888244079,-788.11,0.00017808,2]
[367655728,1750888244088,-460.0,0.00017808,2]
[367655729,1750888244098,-460.0,0.00017808,2]
[367655730,1750888244107,-717.09,0.00017808,2]
[367655731,1750888244117,-576.51,0.00017808,2]
[367655732,1750888244126,-874.83,0.00017808,2]
[367655733,1750888244136,-460.0,0.00017808,2]
[367655734,1750888244145,-460.0,0.00017808,2]
[367655735,1750888244154,-460.0,0.00017808,2]
[367655736,1750888244163,-460.0,0.00017808,2]
[367655737,1750888244172,-460.0,0.00017808,2]
[367655738,1750888244182,-460.0,0.00017808,2]
[367655739,1750888244191,-839.63,0.00017808,2]
[367655740,1750888244201,-917.74,0.00017808,2]
[367655741,1750888244211,-484.22,0.00017808,2]
[367655742,1750888244220,-460.0,0.00017808,2]
[367655743,1750888244230,-460.0,0.00017808,2]
[367655744,1750888244239,-460.0,0.00017808,2]
[367655745,1750888244248,-543.99,0.00017808,2]
[367655746,1750888244258,-1859.25,0.00017808,2]
[367655747,1750888244267,-460.0,0.00017808,2]
[367655748,1750888244276,-1795.95,0.00017808,2]
[367655749,1750888244286,-460.0,0.00017808,2]
[367655750,1750888244295,-460.0,0.00017808,2]
[367655751,1750888244304,-458.32700591,0.00017877,2]
[367655752,1750888244314,-1628.40453808,0.000179,2]
[367655753,1750888244324,-500.0,0.00017911,2]
[367655754,1750888244333,-500.0,0.00017913,2]
[367655755,1750888244342,-1680.0,0.00017944,2]
[367655756,1750888244351,-500.0,0.00017964,2]
[367655757,1750888244360,-1000.0,0.00018056,2]
[367655758,1750888244370,-339.33291801,0.00018082,2]
[367655759,1750888244379,-460.0,0.00018082,2]
[367655760,1750888244388,-460.0,0.00018082,2]
[367655761,1750888244397,-1094.6,0.00018082,2]
[367655762,1750888244406,-460.0,0.00018082,2]
[367655763,1750888244416,-1290.48,0.00018082,2]
[367655764,1750888244425,-460.0,0.00018082,2]
[367655765,1750888244434,-460.0,0.00018082,2]
[367655766,1750888244444,-598.33439302,0.00018082,2]
[367655767,1750888244453,-460.0,0.00018082,2]
[367655768,1750888244463,-460.0,0.00018082,2]
[367655769,1750888244472,-460.0,0.00018082,2]
[367655770,1750888244481,-655.46,0.00018082,2]
[367655771,1750888244491,-460.0,0.00018082,2]
[367655772,1750888244500,-460.0,0.00018082,2]
[367655773,1750888244509,-989.16,0.00018082,2]
[367655774,1750888244518,-535.35,0.00018082,2]
[367655775,1750888244528,-460.0,0.00018082,2]
[367655776,1750888244537,-460.0,0.00018082,2]
[367655777,1750888244547,-1397.3,0.00018082,2]
[367655778,1750888244556,-460.0,0.00018082,2]
[367655779,1750888244565,-788.11,0.00018082,2]
[367655780,1750888244574,-460.0,0.00018082,2]
[367655781,1750888244584,-460.0,0.00018082,2]
[367655782,1750888244593,-717.09,0.00018082,2]
[367655783,1750888244602,-576.51,0.00018082,2]
[367655784,1750888244612,-874.83,0.00018082,2]
[367655785,1750888244621,-460.0,0.00018082,2]
[367655786,1750888244631,-460.0,0.00018082,2]
[367655787,1750888244640,-460.0,0.00018082,2]
[367655788,1750888244650,-460.0,0.00018082,2]
[367655789,1750888244659,-251.09485637,0.00018082,2]
[367655790,1750888244668,-261.20956769,0.00018082,2]
[367655791,1750888244677,-839.63,0.00018082,2]
[367655792,1750888244686,-917.74,0.00018082,2]
[367655793,1750888244696,-484.22,0.00018082,2]
[367655794,1750888244706,-460.0,0.00018082,2]
[367655795,1750888244715,-460.0,0.00018082,2]
[367655796,1750888244724,-460.0,0.00018082,2]
[367655797,1750888244733,-543.99,0.00018082,2]
[367655798,1750888244742,-1859.25,0.00018082,2]
[367655799,1750888244752,-460.0,0.00018082,2]
[367655800,1750888244761,-1795.95,0.00018082,2]
[367655801,1750888244770,-460.0,0.00018082,2]
[367655802,1750888244779,-460.0,0.00018082,2]
[367655803,1750888244788,-274.0,0.00018087,2]
[367655804,1750888244797,-500.0,0.00018102,2]
[367655805,1750888244807,-1000.0,0.00018102,2]
[367655806,1750888244816,-1000.0,0.00018115,2]
[367655807,1750888244825,-1628.40453782,0.00018141,2]
[367655808,1750888244835,-500.0,0.00018165,2]
[367655809,1750888244844,-323.80255647,0.00018167,2]
[367655810,1750888244853,-460.0,0.00018356,2]
[367655811,1750888244863,-460.0,0.00018356,2]
[367655812,1750888244873,-1094.6,0.00018356,2]
[367655813,1750888244883,-460.0,0.00018356,2]
[367655814,1750888244892,-1290.48,0.00018356,2]
[367655815,1750888244902,-460.0,0.00018356,2]
[367655816,1750888244912,-237.15983953,0.00018356,2]
[367655817,1750888244921,-460.0,0.00018356,2]
[367655818,1750888244930,-460.0,0.00018356,2]
[367655819,1750888244940,-460.0,0.00018356,2]
[367655820,1750888244949,-655.46,0.00018356,2]
[367655821,1750888244959,-460.0,0.00018356,2]
[367655822,1750888244968,-460.0,0.00018356,2]
[367655823,1750888244978,-989.16,0.00018356,2]
[367655824,1750888244987,-535.35,0.00018356,2]
[367655825,1750888244996,-460.0,0.00018356,2]
[367655826,1750888245006,-460.0,0.00018356,2]
[367655827,1750888245015,-1397.3,0.00018356,2]
[367655828,1750888245025,-460.0,0.00018356,2]
[367655829,1750888245035,-788.11,0.00018356,2]
[367655830,1750888245044,-469.62067458,0.00018356,2]
[367655831,1750888245053,-460.0,0.00018356,2]
[367655832,1750888245063,-717.09,0.00018356,2]
[367655833,1750888245072,-576.51,0.00018356,2]
[367655834,1750888245081,-874.83,0.00018356,2]
[367655835,1750888245091,-460.0,0.00018356,2]
[367655836,1750888245100,-460.0,0.00018356,2]
[367655837,1750888245109,-460.0,0.00018356,2]
[367655838,1750888245118,-460.0,0.00018356,2]
[367655839,1750888245128,-839.63,0.00018356,2]
[367655840,1750888245137,-917.74,0.00018356,2]
[367655841,1750888245146,-484.22,0.00018356,2]
[367655842,1750888245155,-460.0,0.00018356,2]
[367655843,1750888245164,-460.0,0.00018356,2]
[367655844,1750888245173,-460.0,0.00018356,2]
[367655845,1750888245183,-543.99,0.00018356,2]
[367655846,1750888245192,-1859.25,0.00018356,2]
[367655847,1750888245201,-460.0,0.00018356,2]
[367655848,1750888245210,-1795.95,0.00018356,2]
[367655849,1750888245219,-460.0,0.00018356,2]
[367655850,1750888245229,-460.0,0.00018356,2]
[367655851,1750888245238,-1628.40453782,0.00018383,2]
[367655852,1750888245247,-500.0,0.00018604,2]
[367655853,1750888245257,-1628.40453782,0.00018624,2]
[367655854,1750888245266,-460.0,0.0001863,2]
[367655855,1750888245276,-460.0,0.0001863,2]
[367655856,1750888245286,-1094.6,0.0001863,2]
[367655857,1750888245296,-460.0,0.0001863,2]
[367655858,1750888245305,-1290.48,0.0001863,2]
[367655859,1750888245452,-460.0,0.0001863,2]
[367655860,1750888245461,-460.0,0.0001863,2]
[367655861,1750888245471,-460.0,0.0001863,2]
[367655862,1750888245480,-460.0,0.0001863,2]
[367655863,1750888245489,-655.46,0.0001863,2]
[367655864,1750888245498,-460.0,0.0001863,2]
[367655865,1750888245507,-460.0,0.0001863,2]
[367655866,1750888245517,-989.16,0.0001863,2]
[367655867,1750888245526,-535.35,0.0001863,2]
[367655868,1750888245535,-460.0,0.0001863,2]
[367655869,1750888245545,-460.0,0.0001863,2]
[367655870,1750888245555,-1397.3,0.0001863,2]
[367655871,1750888245564,-460.0,0.0001863,2]
[367655872,1750888245573,-788.11,0.0001863,2]
[367655873,1750888245582,-460.0,0.0001863,2]
[367655874,1750888245591,-717.09,0.0001863,2]
[367655875,1750888245600,-576.51,0.0001863,2]
[367655876,1750888245609,-874.83,0.0001863,2]
[367655877,1750888245619,-460.0,0.0001863,2]
[367655878,1750888245629,-460.0,0.0001863,2]
[367655879,1750888245638,-460.0,0.0001863,2]
[367655880,1750888245648,-460.0,0.0001863,2]
[367655881,1750888245657,-839.63,0.0001863,2]
[367655882,1750888245667,-917.74,0.0001863,2]
[367655883,1750888245676,-484.22,0.0001863,2]
[367655884,1750888245685,-452.12674105,0.0001863,2]
[367655885,1750888245694,-460.0,0.0001863,2]
[367655886,1750888245704,-460.0,0.0001863,2]
[367655887,1750888245713,-543.99,0.0001863,2]
[367655888,1750888245722,-1859.25,0.0001863,2]
[367655889,1750888245732,-460.0,0.0001863,2]
[367655890,1750888245742,-1795.95,0.0001863,2]
[367655891,1750888245751,-460.0,0.0001863,2]
[367655892,1750888245760,-207.4,0.00018645,2]
[367655893,1750888245769,-500.0,0.00018645,2]
[367655894,1750888245779,-1500.0,0.00018649,2]
[367655895,1750888245788,-1500.0,0.00018663,2]
[367655896,1750888245797,-1628.40453782,0.00018866,2]
[367655897,1750888245806,-458.32700591,0.00018867,2]
[367655898,1750888245815,-7326.26115405,0.000189,2]
[367655899,1750888245825,-460.0,0.00018904,2]
[367655900,1750888245834,-284.88482928,0.00018904,2]
[367655901,1750888245844,-1094.6,0.00018904,2]
[367655902,1750888245853,-460.0,0.00018904,2]
[367655903,1750888245863,-1290.48,0.00018904,2]
[367655904,1750888245872,-460.0,0.00018904,2]
[367655905,1750888245882,-460.0,0.00018904,2]
[367655906,1750888245891,-460.0,0.00018904,2]
[367655907,1750888245900,-266.96297371,0.00018904,2]
[367655908,1750888245909,-655.46,0.00018904,2]
[367655909,1750888245920,-460.0,0.00018904,2]
[367655910,1750888245929,-401.18343621,0.00018904,2]
[367655911,1750888245938,-989.16,0.00018904,2]
[367655912,1750888245948,-535.35,0.00018904,2]
[367655913,1750888245957,-460.0,0.00018904,2]
[367655914,1750888245967,-460.0,0.00018904,2]
[367655915,1750888245976,-1397.3,0.00018904,2]
[367655916,1750888245986,-199.02062751,0.00018904,2]
[367655917,1750888245996,-788.11,0.00018904,2]
[367655918,1750888246005,-460.0,0.00018904,2]
[367655919,1750888246015,-717.09,0.00018904,2]
[367655920,1750888246024,-576.51,0.00018904,2]
[367655921,1750888246034,-874.83,0.00018904,2]
[367655922,1750888246043,-460.0,0.00018904,2]
[367655923,1750888246053,-460.0,0.00018904,2]
[367655924,1750888246062,-460.0,0.00018904,2]
[367655925,1750888246071,-460.0,0.00018904,2]
[367655926,1750888246081,-839.63,0.00018904,2]
[367655927,1750888246090,-917.74,0.00018904,2]
[367655929,1750888246099,-484.22,0.00018904,2]
[367655931,1750888246109,-460.0,0.00018904,2]
[367655933,1750888246118,-460.0,0.00018904,2]
[367655935,1750888246127,-543.99,0.00018904,2]
[367655937,1750888246136,-1859.25,0.00018904,2]
[367655939,1750888246146,-460.0,0.00018904,2]
[367655941,1750888246155,-1795.95,0.00018904,2]
[367655943,1750888246164,-460.0,0.00018904,2]
[367655944,1750888246174,-965.0,0.00019098,2]
[367655945,1750888246183,-2161.0,0.00019098,2]
[367655946,1750888246192,-654.0,0.00019098,2]
[367655947,1750888246201,-413.555,0.00019098,2]
[367655948,1750888246211,-406.0,0.00019098,2]
[367655949,1750888246220,-152.636,0.00019098,2]
[367655950,1750888246230,-1628.40453782,0.00019107,2]
[367655951,1750888246239,-151.0,0.00019178,2]
[367655952,1750888246248,-153.0588,0.00019178,2]
[367655953,1750888246257,-151.0,0.00019178,2]
[367655954,1750888246266,-151.0,0.00019178,2]
[367655955,1750888246276,-151.0,0.00019178,2]
[367655956,1750888246285,-151.0,0.00019178,2]
[367655957,1750888246294,-460.0,0.00019178,2]
[367655958,1750888246304,-1094.6,0.00019178,2]
[367655959,1750888246314,-460.0,0.00019178,2]
[367655960,1750888246324,-1290.48,0.00019178,2]
[367655961,1750888246334,-460.0,0.00019178,2]
[367655962,1750888246343,-460.0,0.00019178,2]
[367655963,1750888246353,-559.4074658,0.00019178,2]
[367655964,1750888246362,-655.46,0.00019178,2]
[367655965,1750888246371,-460.0,0.00019178,2]
[367655966,1750888246381,-989.16,0.00019178,2]
[367655967,1750888246390,-535.35,0.00019178,2]
[367655968,1750888246400,-460.0,0.00019178,2]
[367655969,1750888246410,-460.0,0.00019178,2]
[367655970,1750888246419,-1397.3,0.00019178,2]
[367655971,1750888246429,-788.11,0.00019178,2]
[367655972,1750888246438,-369.65984174,0.00019178,2]
[367655973,1750888246448,-717.09,0.00019178,2]
[367655974,1750888246457,-576.51,0.00019178,2]
[367655975,1750888246467,-874.83,0.00019178,2]
[367655976,1750888246477,-152.1148614,0.00019178,2]
[367655977,1750888246486,-460.0,0.00019178,2]
[367655978,1750888246496,-460.0,0.00019178,2]
[367655979,1750888246505,-460.0,0.00019178,2]
[367655980,1750888246515,-839.63,0.00019178,2]
[367655981,1750888246524,-917.74,0.00019178,2]
[367655982,1750888246534,-484.22,0.00019178,2]
[367655983,1750888246543,-460.0,0.00019178,2]
[367655984,1750888246552,-460.0,0.00019178,2]
[367655985,1750888246562,-543.99,0.00019178,2]
[367655986,1750888246572,-1859.25,0.00019178,2]
[367655987,1750888246581,-460.0,0.00019178,2]
[367655988,1750888246591,-1795.95,0.00019178,2]
[367655989,1750888246600,-460.0,0.00019178,2]
[367655990,1750888246610,-310.940258,0.00019178,2]
[367655991,1750888246619,-432.7968027,0.00019272,2]
[367655992,1750888246628,-151.00000001,0.00019287,2]
[367655993,1750888246638,-151.0,0.00019287,2]
[367655994,1750888246647,-151.0,0.00019287,2]
[367655995,1750888246656,-151.0,0.00019287,2]
[367655996,1750888246665,-151.0,0.00019314,2]
[367655997,1750888246675,-151.0,0.00019314,2]
[367655998,1750888246686,-151.0,0.00019314,2]
[367655999,1750888246695,-198.0,0.00019342,2]
[367656000,1750888246704,-151.0,0.00019342,2]
[367656001,1750888246714,-198.0,0.00019342,2]
[367656002,1750888246723,-1628.40453782,0.00019348,2]
[367656003,1750888246733,-261.96199244,0.00019369,2]
[367656004,1750888246743,-460.0,0.00019452,2]
[367656005,1750888246754,-1094.6,0.00019452,2]
[367656006,1750888246763,-460.0,0.00019452,2]
[367656007,1750888246773,-460.0,0.00019452,2]
[367656008,1750888246782,-1290.48,0.00019452,2]
[367656009,1750888246791,-460.0,0.00019452,2]
[367656010,1750888246800,-655.46,0.00019452,2]
[367656011,1750888246809,-535.67223408,0.00019452,2]
[367656012,1750888246818,-989.16,0.00019452,2]
[367656013,1750888246828,-535.35,0.00019452,2]
[367656014,1750888246837,-456.24,0.00019452,2]
[367656015,1750888246849,-460.0,0.00019452,2]
[367656016,1750888246858,-1397.3,0.00019452,2]
[367656017,1750888246868,-788.11,0.00019452,2]
[367656018,1750888246878,-717.09,0.00019452,2]
[367656019,1750888246887,-576.51,0.00019452,2]
[367656020,1750888246896,-874.83,0.00019452,2]
[367656021,1750888246906,-460.0,0.00019452,2]
[367656022,1750888246915,-460.0,0.00019452,2]
[367656023,1750888246924,-460.0,0.00019452,2]
[367656024,1750888246934,-839.63,0.00019452,2]
[367656025,1750888246943,-917.74,0.00019452,2]
[367656026,1750888246953,-484.22,0.00019452,2]
[367656027,1750888246962,-460.0,0.00019452,2]
[367656028,1750888246971,-460.0,0.00019452,2]
[367656029,1750888246980,-543.99,0.00019452,2]
[367656030,1750888246989,-1859.25,0.00019452,2]
[367656031,1750888246999,-460.0,0.00019452,2]
[367656032,1750888247009,-1795.95,0.00019452,2]
[367656033,1750888247018,-460.0,0.00019452,2]
[367656034,1750888247027,-385.710185,0.00019494,2]
[367656035,1750888247036,-385.710185,0.00019494,2]
[367656036,1750888247045,-1087.4832681,0.00019534,2]
[367656037,1750888247055,-318.3385472,0.00019534,2]
[367656038,1750888247064,-153.0,0.00019534,2]
[367656039,1750888247074,-153.0,0.00019534,2]
[367656040,1750888247084,-574.9477627,0.00019534,2]
[367656041,1750888247093,-318.3879852,0.00019534,2]
[367656042,1750888247102,-177.4156324,0.00019534,2]
[367656043,1750888247112,-153.0,0.00019534,2]
[367656044,1750888247122,-574.9477627,0.00019534,2]
[367656045,1750888247131,-177.4156324,0.00019534,2]
[367656046,1750888247141,-574.9477627,0.00019534,2]
[367656047,1750888247150,-153.0,0.00019534,2]
[367656048,1750888247159,-1628.40453782,0.0001959,2]
[367656049,1750888247168,-2200.0,0.00019598,2]
[367656050,1750888247178,-432.7968027,0.00019634,2]
[367656051,1750888247187,-720.0,0.0001971,2]
[367656052,1750888247196,-460.0,0.00019726,2]
[367656053,1750888247206,-1094.6,0.00019726,2]
[367656054,1750888247215,-460.0,0.00019726,2]
[367656055,1750888247225,-460.0,0.00019726,2]
[367656056,1750888247234,-1290.48,0.00019726,2]
[367656057,1750888247243,-460.0,0.00019726,2]
[367656058,1750888247252,-655.46,0.00019726,2]
[367656059,1750888247261,-989.16,0.00019726,2]
[367656060,1750888247271,-535.35,0.00019726,2]
[367656061,1750888247283,-460.0,0.00019726,2]
[367656062,1750888247293,-1397.3,0.00019726,2]
[367656063,1750888247304,-788.11,0.00019726,2]
[367656064,1750888247314,-717.09,0.00019726,2]
[367656065,1750888247323,-576.51,0.00019726,2]
[367656066,1750888247335,-874.83,0.00019726,2]
[367656067,1750888247344,-122.41864835,0.00019726,2]
[367656068,1750888247467,-337.58135165,0.00019726,2]
[367656069,1750888247479,-460.0,0.00019726,2]
[367656070,1750888247490,-460.0,0.00019726,2]
[367656071,1750888247501,-839.63,0.00019726,2]
[367656072,1750888247511,-917.74,0.00019726,2]
[367656073,1750888247520,-484.22,0.00019726,2]
[367656074,1750888247531,-460.0,0.00019726,2]
[367656075,1750888247542,-460.0,0.00019726,2]
[367656076,1750888247551,-543.99,0.00019726,2]
[367656077,1750888247561,-1859.25,0.00019726,2]
[367656078,1750888247569,-460.0,0.00019726,2]
[367656079,1750888247579,-1795.95,0.00019726,2]
[367656080,1750888247588,-370.42157617,0.00019726,2]
[367656081,1750888247598,-181.556,0.00019741,2]
[367656082,1750888247611,-1628.40453782,0.00019831,2]
[367656083,1750888247621,-185.0,0.00019851,2]
[367656084,1750888247630,-458.32700591,0.00019858,2]
[367656085,1750888247640,-2364.0,0.00019865,2]
[367656086,1750888247651,-1210.119961,0.00019867,2]
[367656087,1750888247661,-432.7968027,0.00019886,2]
[367656088,1750888247672,-12500.0,0.00019973,2]
[367656089,1750888247682,-161.818736,0.00019989,2]
[367656090,1750888247692,-151.0,0.00019989,2]
[367656091,1750888247701,-151.0,0.00019989,2]
[367656092,1750888247711,-151.0,0.00019989,2]
[367656093,1750888247721,-385.710185,0.00019989,2]
[367656094,1750888247732,-385.710185,0.00019989,2]
[367656095,1750888247742,-151.0,0.00019989,2]
[367656096,1750888247753,-365.9458251,0.0002,2]
[367656097,1750888247763,-366.0085437,0.0002,2]
[367656098,1750888247772,-3582.98,0.0002,2]
[367656099,1750888247782,-430.99871146,0.0002,2]
[367656100,1750888247791,-536.91464705,0.0002,2]
[367656101,1750888247800,-1094.6,0.0002,2]
[367656102,1750888247810,-460.0,0.0002,2]
[367656103,1750888247819,-460.0,0.0002,2]
[367656104,1750888247830,-1290.48,0.0002,2]
[367656105,1750888247840,-460.0,0.0002,2]
[367656106,1750888247851,-655.46,0.0002,2]
[367656107,1750888247860,-758.07390005,0.0002,2]
[367656108,1750888248067,-460.0,0.00017808,2]
[367656109,1750888248076,-374.7766775,0.00018082,2]
[367656110,1750888248088,-85.2233225,0.00018082,2]
[367656111,1750888248097,-460.0,0.00018356,2]
[367656112,1750888248106,-460.0,0.0001863,2]
[367656113,1750888248115,-460.0,0.0001863,2]
[367656114,1750888248124,-460.0,0.00018904,2]
[367656115,1750888248133,-460.0,0.00018904,2]
[367656116,1750888248143,-460.0,0.00019178,2]
[367656117,1750888248152,-460.0,0.00019178,2]
[367656118,1750888248161,-460.0,0.00019452,2]
[367656119,1750888248170,-460.0,0.00019452,2]
[367656120,1750888248180,-460.0,0.00019726,2]
[367656121,1750888248189,-460.0,0.00019726,2]
[367656122,1750888248199,-231.08609995,0.0002,2]
[367656123,1750888248208,-535.35,0.0002,2]
[367656124,1750888248218,-460.0,0.0002,2]
[367656125,1750888248227,-1397.3,0.0002,2]
[367656126,1750888248236,-788.11,0.0002,2]
[367656127,1750888248246,-717.09,0.0002,2]
[367656128,1750888248255,-576.51,0.0002,2]
[367656129,1750888248264,-874.83,0.0002,2]
[367656130,1750888248273,-460.0,0.0002,2]
[367656131,1750888248282,-511.754658,0.0002,2]
[367656132,1750888248292,-494.07974911,0.0002,2]
[367656133,1750888248302,-839.63,0.0002,2]
[367656134,1750888248311,-917.74,0.0002,2]
[367656135,1750888248320,-484.22,0.0002,2]
[367656136,1750888248329,-460.0,0.0002,2]
[367656137,1750888248338,-460.0,0.0002,2]
[367656138,1750888248347,-543.99,0.0002,2]
[367656139,1750888248356,-1859.25,0.0002,2]
[367656140,1750888248365,-460.0,0.0002,2]